[Event "Titled Tuesday Blitz August 17 2021"]
[White "Denishev, Marat"]
[Black "Gedgafov, Chamal"]
[WhiteFideId "24131563"]
[BlackFideId "34130621"]
[WhiteElo "2132"]
[BlackElo "2005"]
[Result "1-0"]
[Round "08"]
[TimeControl "180+1"]
[Date "2021.08.17"]
[WhiteClock "0:02:02"]
[BlackClock "0:00:15"]

1. e4 {[%clk 0:03:00]}  e6 {[%clk 0:02:59]} 2. d3 {[%clk 0:02:58]}  c5 {[%clk 0:02:58]} 3. Nd2 {[%clk 0:02:59]}  Nc6 {[%clk 0:02:58]} 4. g3 {[%clk 0:03:00]}  g6 {[%clk 0:02:59]} 5. Bg2 {[%clk 0:03:00]}  Bg7 {[%clk 0:02:59]} 6. Ngf3 {[%clk 0:03:01]}  Nge7 {[%clk 0:03:00]} 7. O-O {[%clk 0:03:02]}  d5 {[%clk 0:03:00]} 8. e5 {[%clk 0:03:01]}  Qc7 {[%clk 0:03:00]} 9. Re1 {[%clk 0:03:00]}  Nxe5 {[%clk 0:02:52]} 10. Nxe5 {[%clk 0:03:00]}  Bxe5 {[%clk 0:02:51]} 11. Qe2 {[%clk 0:03:01]}  Bg7 {[%clk 0:02:50]} 12. c3 {[%clk 0:03:02]}  O-O {[%clk 0:02:50]} 13. Nf3 {[%clk 0:03:02]}  b6 {[%clk 0:02:46]} 14. Bf4 {[%clk 0:03:02]}  Qd8 {[%clk 0:02:42]} 15. h4 {[%clk 0:03:02]}  h5 {[%clk 0:02:41]} 16. Qd2 {[%clk 0:03:02]}  Nf5 {[%clk 0:02:32]} 17. Ng5 {[%clk 0:03:01]}  Bb7 {[%clk 0:02:29]} 18. Re2 {[%clk 0:03:00]}  Qd7 {[%clk 0:02:28]} 19. Rae1 {[%clk 0:03:00]}  d4 {[%clk 0:02:26]} 20. c4 {[%clk 0:02:58]}  Bxg2 {[%clk 0:02:22]} 21. Kxg2 {[%clk 0:02:59]}  a6 {[%clk 0:02:22]} 22. Ne4 {[%clk 0:02:50]}  Qc6 {[%clk 0:02:20]} 23. Kg1 {[%clk 0:02:50]}  b5 {[%clk 0:02:08]} 24. b3 {[%clk 0:02:49]}  Rfe8 {[%clk 0:01:58]} 25. Bg5 {[%clk 0:02:46]}  e5 {[%clk 0:01:55]} 26. Qc1 {[%clk 0:02:38]}  Kh7 {[%clk 0:01:53]} 27. f3 {[%clk 0:02:34]}  Re6 {[%clk 0:01:43]} 28. g4 {[%clk 0:02:33]}  hxg4 {[%clk 0:01:36]} 29. fxg4 {[%clk 0:02:33]}  Nh6 {[%clk 0:01:27]} 30. Bxh6 {[%clk 0:02:29]}  Bxh6 {[%clk 0:01:27]} 31. g5 {[%clk 0:02:30]}  Bg7 {[%clk 0:01:27]} 32. Rf1 {[%clk 0:02:30]}  Rf8 {[%clk 0:01:19]} 33. Ref2 {[%clk 0:02:30]}  Re7 {[%clk 0:01:07]} 34. Qd1 {[%clk 0:02:26]}  bxc4 {[%clk 0:01:03]} 35. bxc4 {[%clk 0:02:26]}  Qe6 {[%clk 0:00:53]} 36. Qf3 {[%clk 0:02:18]}  Kg8 {[%clk 0:00:46]} 37. Nxc5 {[%clk 0:02:15]}  Qb6 {[%clk 0:00:28]} 38. Ne4 {[%clk 0:02:13]}  Qe6 {[%clk 0:00:26]} 39. Qg3 {[%clk 0:02:06]}  Rb7 {[%clk 0:00:20]} 40. Nc5 {[%clk 0:02:04]}  Qc6 {[%clk 0:00:18]} 41. Nxb7 {[%clk 0:02:04]}  Qxb7 {[%clk 0:00:19]} 42. Qf3 {[%clk 0:02:05]}  Qc7 {[%clk 0:00:17]} 43. Qe4 {[%clk 0:02:05]}  Qe7 {[%clk 0:00:16]} 44. a4 {[%clk 0:02:02]}  Qe6 {[%clk 0:00:16]} 45. c5 {[%clk 0:02:01]}  Rc8 {[%clk 0:00:14]} 46. Rxf7 {[%clk 0:02:00]}  Qxf7 {[%clk 0:00:14]} 47. Rxf7 {[%clk 0:02:01]}  Kxf7 {[%clk 0:00:15]} 48. Qb7+ {[%clk 0:02:01]}  Ke6 {[%clk 0:00:15]} 49. Qxc8+ {[%clk 0:02:01]}  Kd5 {[%clk 0:00:16]} 50. Qd7+ {[%clk 0:02:01]}  Kxc5 {[%clk 0:00:15]} 51. Qxg7 {[%clk 0:02:02]} 1-0


[Site "https://www.chess.com"]

[Event "Titled Tuesday Blitz August 17 2021"]
[White "Dev, Shah"]
[Black "Bortnyk, Olexandr"]
[WhiteFideId "35019058"]
[BlackFideId "14120828"]
[WhiteElo "2098"]
[BlackElo "2723"]
[Result "0-1"]
[Round "08"]
[TimeControl "180+1"]
[Date "2021.08.17"]
[WhiteClock "0:00:01"]
[BlackClock "0:00:10"]

1. d4 {[%clk 0:03:00]}  f5 {[%clk 0:02:55]} 2. g3 {[%clk 0:02:58]}  Nf6 {[%clk 0:02:55]} 3. Bg2 {[%clk 0:02:58]}  d6 {[%clk 0:02:56]} 4. c4 {[%clk 0:02:58]}  g6 {[%clk 0:02:56]} 5. Nc3 {[%clk 0:02:58]}  Bg7 {[%clk 0:02:57]} 6. Nf3 {[%clk 0:02:59]}  O-O {[%clk 0:02:58]} 7. O-O {[%clk 0:03:00]}  c6 {[%clk 0:02:59]} 8. d5 {[%clk 0:03:00]}  e5 {[%clk 0:02:59]} 9. e4 {[%clk 0:03:00]}  cxd5 {[%clk 0:02:59]} 10. cxd5 {[%clk 0:02:59]}  fxe4 {[%clk 0:02:58]} 11. Ng5 {[%clk 0:02:59]}  Na6 {[%clk 0:02:58]} 12. Ngxe4 {[%clk 0:02:58]}  Nxe4 {[%clk 0:02:58]} 13. Nxe4 {[%clk 0:02:59]}  Bf5 {[%clk 0:02:58]} 14. Be3 {[%clk 0:02:56]}  Rc8 {[%clk 0:02:56]} 15. Qb3 {[%clk 0:02:54]}  b6 {[%clk 0:02:50]} 16. Rac1 {[%clk 0:02:51]}  Bxe4 {[%clk 0:02:49]} 17. Bxe4 {[%clk 0:02:51]}  Nc5 {[%clk 0:02:49]} 18. Bxc5 {[%clk 0:02:50]}  bxc5 {[%clk 0:02:49]} 19. Qa4 {[%clk 0:02:47]}  Qb6 {[%clk 0:02:44]} 20. b3 {[%clk 0:02:47]}  Bh6 {[%clk 0:02:38]} 21. Rc2 {[%clk 0:02:42]}  Rf7 {[%clk 0:02:38]} 22. Bg2 {[%clk 0:02:36]}  Rcf8 {[%clk 0:02:33]} 23. Bh3 {[%clk 0:02:35]}  Kg7 {[%clk 0:02:28]} 24. Be6 {[%clk 0:02:31]}  Rc7 {[%clk 0:02:24]} 25. Qh4 {[%clk 0:02:27]}  Qa6 {[%clk 0:02:14]} 26. Qc4 {[%clk 0:02:15]}  Qxc4 {[%clk 0:01:47]} 27. Rxc4 {[%clk 0:02:15]}  a5 {[%clk 0:01:48]} 28. Re1 {[%clk 0:01:59]}  Rb7 {[%clk 0:01:45]} 29. Re2 {[%clk 0:01:57]}  Rb4 {[%clk 0:01:42]} 30. Rxb4 {[%clk 0:01:56]}  axb4 {[%clk 0:01:42]} 31. Rc2 {[%clk 0:01:52]}  Rf3 {[%clk 0:01:42]} 32. Kf1 {[%clk 0:01:48]}  Rc3 {[%clk 0:01:43]} 33. Re2 {[%clk 0:01:33]}  Kf6 {[%clk 0:01:39]} 34. Bg8 {[%clk 0:01:23]}  Bc1 {[%clk 0:01:36]} 35. h4 {[%clk 0:01:18]}  h6 {[%clk 0:01:32]} 36. Be6 {[%clk 0:01:18]}  g5 {[%clk 0:01:29]} 37. h5 {[%clk 0:01:12]}  Rd3 {[%clk 0:01:21]} 38. Rc2 {[%clk 0:01:01]}  Rd1+ {[%clk 0:01:16]} 39. Ke2 {[%clk 0:01:02]}  Rh1 {[%clk 0:01:16]} 40. Kf3 {[%clk 0:01:00]}  Re1 {[%clk 0:01:14]} 41. Re2 {[%clk 0:00:54]}  Rd1 {[%clk 0:01:12]} 42. Rc2 {[%clk 0:00:52]}  Rh1 {[%clk 0:01:09]} 43. Kg2 {[%clk 0:00:45]}  Re1 {[%clk 0:01:08]} 44. f3 {[%clk 0:00:37]}  Be3 {[%clk 0:01:07]} 45. g4 {[%clk 0:00:25]}  Rg1+ {[%clk 0:00:55]} 46. Kh2 {[%clk 0:00:24]}  Rd1 {[%clk 0:00:56]} 47. Kg2 {[%clk 0:00:19]}  Bd4 {[%clk 0:00:47]} 48. Bf5 {[%clk 0:00:15]}  e4 {[%clk 0:00:33]} 49. Bxe4 {[%clk 0:00:16]}  Ke5 {[%clk 0:00:34]} 50. Re2 {[%clk 0:00:14]}  Kf4 {[%clk 0:00:35]} 51. Kh2 {[%clk 0:00:06]}  Be3 {[%clk 0:00:26]} 52. Kg2 {[%clk 0:00:04]}  Rc1 {[%clk 0:00:19]} 53. Rc2 {[%clk 0:00:02]}  Rg1+ {[%clk 0:00:17]} 54. Kh2 {[%clk 0:00:02]}  Ra1 {[%clk 0:00:17]} 55. Re2 {[%clk 0:00:02]}  Rd1 {[%clk 0:00:15]} 56. Kg2 {[%clk 0:00:01]}  Rd4 {[%clk 0:00:16]} 57. Rc2 {[%clk 0:00:01]}  Bd2 {[%clk 0:00:10]} 0-1


[Site "https://www.chess.com"]

[Event "Titled Tuesday Blitz August 17 2021"]
[White "Divya Deshmukh"]
[Black "Yaran, Siar"]
[WhiteFideId "35006916"]
[BlackFideId "6323006"]
[WhiteElo "2239"]
[BlackElo "1977"]
[Result "0-1"]
[Round "08"]
[TimeControl "180+1"]
[Date "2021.08.17"]
[WhiteClock "0:00:02"]
[BlackClock "0:00:03"]

1. Nf3 {[%clk 0:03:00]}  Nf6 {[%clk 0:02:58]} 2. g3 {[%clk 0:03:01]}  b6 {[%clk 0:02:56]} 3. Bg2 {[%clk 0:03:02]}  Bb7 {[%clk 0:02:57]} 4. O-O {[%clk 0:03:00]}  g6 {[%clk 0:02:57]} 5. d3 {[%clk 0:03:01]}  Bg7 {[%clk 0:02:57]} 6. Nbd2 {[%clk 0:03:02]}  O-O {[%clk 0:02:57]} 7. e4 {[%clk 0:03:03]}  c5 {[%clk 0:02:56]} 8. Re1 {[%clk 0:03:03]}  d6 {[%clk 0:02:50]} 9. Qe2 {[%clk 0:03:01]}  Nbd7 {[%clk 0:02:49]} 10. Nf1 {[%clk 0:02:58]}  Qc7 {[%clk 0:02:48]} 11. Ne3 {[%clk 0:02:54]}  Bc6 {[%clk 0:02:46]} 12. Bd2 {[%clk 0:02:49]}  Rad8 {[%clk 0:02:44]} 13. h4 {[%clk 0:02:39]}  d5 {[%clk 0:02:44]} 14. exd5 {[%clk 0:02:25]}  Nxd5 {[%clk 0:02:42]} 15. Nxd5 {[%clk 0:02:15]}  Bxd5 {[%clk 0:02:43]} 16. Qxe7 {[%clk 0:02:08]}  Bxb2 {[%clk 0:02:42]} 17. Rab1 {[%clk 0:02:06]}  Bf6 {[%clk 0:02:41]} 18. Qe3 {[%clk 0:02:04]}  Qc6 {[%clk 0:02:39]} 19. h5 {[%clk 0:01:59]}  Qa8 {[%clk 0:02:27]} 20. Qf4 {[%clk 0:01:52]}  Bg7 {[%clk 0:02:17]} 21. h6 {[%clk 0:01:46]}  Bh8 {[%clk 0:02:17]} 22. Nh4 {[%clk 0:01:42]}  Bxg2 {[%clk 0:02:04]} 23. Nxg2 {[%clk 0:01:43]}  Qd5 {[%clk 0:02:04]} 24. Ne3 {[%clk 0:01:41]}  Qxa2 {[%clk 0:02:00]} 25. c4 {[%clk 0:01:13]}  Qxd2 {[%clk 0:01:37]} 26. Nd5 {[%clk 0:00:40]}  Bc3 {[%clk 0:01:35]} 27. Re3 {[%clk 0:00:33]}  Bd4 {[%clk 0:01:15]} 28. Rbe1 {[%clk 0:00:17]}  Qb2 {[%clk 0:00:21]} 29. Re4 {[%clk 0:00:11]}  Bc3 {[%clk 0:00:16]} 30. R1e2 {[%clk 0:00:10]}  Qa1+ {[%clk 0:00:16]} 31. Kg2 {[%clk 0:00:10]}  Nf6 {[%clk 0:00:16]} 32. Ne7+ {[%clk 0:00:05]}  Kh8 {[%clk 0:00:17]} 33. R4e3 {[%clk 0:00:03]}  Nh5 {[%clk 0:00:16]} 34. Qc7 {[%clk 0:00:02]}  Bd4 {[%clk 0:00:14]} 35. Rf3 {[%clk 0:00:02]}  Qc1 {[%clk 0:00:13]} 36. Nc6 {[%clk 0:00:03]}  Rc8 {[%clk 0:00:09]} 37. Qd7 {[%clk 0:00:02]}  Qxh6 {[%clk 0:00:09]} 38. Rxf7 {[%clk 0:00:02]}  Ra8 {[%clk 0:00:09]} 39. Ree7 {[%clk 0:00:01]}  Rxf7 {[%clk 0:00:08]} 40. Rxf7 {[%clk 0:00:02]}  Rf8 {[%clk 0:00:07]} 41. Re7 {[%clk 0:00:02]}  Nf6 {[%clk 0:00:06]} 42. Qc7 {[%clk 0:00:02]}  Ng4 {[%clk 0:00:05]} 43. f4 {[%clk 0:00:02]}  Qh2+ {[%clk 0:00:04]} 44. Kf3 {[%clk 0:00:02]}  Qf2+ {[%clk 0:00:05]} 45. Kxg4 {[%clk 0:00:02]}  h5+ {[%clk 0:00:03]} 46. Kh3 {[%clk 0:00:03]}  Qf1+ {[%clk 0:00:03]} 47. Kh4 {[%clk 0:00:02]}  Bf6# {[%clk 0:00:03]} 0-1


[Site "https://www.chess.com"]

[Event "Titled Tuesday Blitz August 17 2021"]
[White "Wagner, Dinara"]
[Black "Tharushi, T H D Niklesha"]
[WhiteFideId "24157570"]
[BlackFideId "9918264"]
[WhiteElo "2260"]
[BlackElo "1595"]
[Result "0-1"]
[Round "08"]
[TimeControl "180+1"]
[Date "2021.08.17"]
[WhiteClock "0:00:12"]
[BlackClock "0:00:14"]

1. d4 {[%clk 0:02:58]}  Nf6 {[%clk 0:02:58]} 2. c4 {[%clk 0:02:58]}  e6 {[%clk 0:02:56]} 3. Nf3 {[%clk 0:02:59]}  d5 {[%clk 0:02:54]} 4. g3 {[%clk 0:02:59]}  dxc4 {[%clk 0:02:51]} 5. Bg2 {[%clk 0:02:59]}  Nc6 {[%clk 0:02:48]} 6. Qa4 {[%clk 0:02:58]}  Qd6 {[%clk 0:02:37]} 7. Qxc4 {[%clk 0:02:54]}  Qd5 {[%clk 0:02:33]} 8. Qa4 {[%clk 0:02:45]}  Bb4+ {[%clk 0:02:17]} 9. Nc3 {[%clk 0:02:41]}  Ne4 {[%clk 0:02:12]} 10. Qc2 {[%clk 0:02:35]}  Nxc3 {[%clk 0:02:07]} 11. bxc3 {[%clk 0:02:35]}  Nxd4 {[%clk 0:02:03]} 12. Qb2 {[%clk 0:02:05]}  Ba3 {[%clk 0:01:30]} 13. Qb1 {[%clk 0:01:52]}  Qa5 {[%clk 0:01:28]} 14. Bd2 {[%clk 0:01:22]}  Nxf3+ {[%clk 0:01:23]} 15. Bxf3 {[%clk 0:01:23]}  Bc5 {[%clk 0:01:17]} 16. O-O {[%clk 0:01:21]}  O-O {[%clk 0:01:13]} 17. Qb3 {[%clk 0:01:18]}  e5 {[%clk 0:01:08]} 18. Qd5 {[%clk 0:01:09]}  c6 {[%clk 0:01:04]} 19. Qb3 {[%clk 0:01:05]}  Qa6 {[%clk 0:00:58]} 20. Rab1 {[%clk 0:01:01]}  Bh3 {[%clk 0:00:52]} 21. Rfd1 {[%clk 0:00:58]}  e4 {[%clk 0:00:48]} 22. Bg2 {[%clk 0:00:29]}  Bxg2 {[%clk 0:00:45]} 23. Kxg2 {[%clk 0:00:29]}  Qxe2 {[%clk 0:00:43]} 24. Be1 {[%clk 0:00:26]}  Qf3+ {[%clk 0:00:39]} 25. Kg1 {[%clk 0:00:26]}  e3 {[%clk 0:00:37]} 26. Qc2 {[%clk 0:00:26]}  Rfe8 {[%clk 0:00:29]} 27. fxe3 {[%clk 0:00:15]}  Rxe3 {[%clk 0:00:25]} 28. Bf2 {[%clk 0:00:16]}  Rae8 {[%clk 0:00:19]} 29. Rf1 {[%clk 0:00:12]}  Re2 {[%clk 0:00:14]} 0-1


[Site "https://www.chess.com"]

[Event "Titled Tuesday Blitz August 17 2021"]
[White "Elissalt Cardenas, Hector"]
[Black "Shishkov, Andrei"]
[WhiteFideId "3500632"]
[BlackFideId "4500563"]
[WhiteElo "2253"]
[BlackElo "2322"]
[Result "1/2-1/2"]
[Round "08"]
[TimeControl "180+1"]
[Date "2021.08.18"]
[WhiteClock "0:00:07"]
[BlackClock "0:00:05"]

1. d4 {[%clk 0:03:00]}  d5 {[%clk 0:02:57]} 2. c4 {[%clk 0:02:58]}  Bf5 {[%clk 0:02:57]} 3. Nc3 {[%clk 0:02:47]}  e6 {[%clk 0:02:56]} 4. Nf3 {[%clk 0:02:38]}  c6 {[%clk 0:02:56]} 5. e3 {[%clk 0:02:36]}  Nd7 {[%clk 0:02:52]} 6. Bd3 {[%clk 0:02:23]}  Bxd3 {[%clk 0:02:51]} 7. Qxd3 {[%clk 0:02:22]}  f5 {[%clk 0:02:52]} 8. cxd5 {[%clk 0:02:17]}  cxd5 {[%clk 0:02:53]} 9. Bd2 {[%clk 0:02:17]}  a6 {[%clk 0:02:51]} 10. O-O {[%clk 0:02:13]}  Bd6 {[%clk 0:02:50]} 11. Rfc1 {[%clk 0:02:13]}  Ngf6 {[%clk 0:02:49]} 12. a3 {[%clk 0:02:04]}  O-O {[%clk 0:02:48]} 13. Ne2 {[%clk 0:02:04]}  Ne4 {[%clk 0:02:38]} 14. Bb4 {[%clk 0:02:03]}  Bxb4 {[%clk 0:02:29]} 15. axb4 {[%clk 0:01:59]}  Qb6 {[%clk 0:02:30]} 16. Qa3 {[%clk 0:01:46]}  Rac8 {[%clk 0:02:25]} 17. Qa5 {[%clk 0:01:43]}  h6 {[%clk 0:02:07]} 18. Qxb6 {[%clk 0:01:32]}  Nxb6 {[%clk 0:02:08]} 19. b3 {[%clk 0:01:33]}  g5 {[%clk 0:02:02]} 20. Rxc8 {[%clk 0:01:25]}  Rxc8 {[%clk 0:02:01]} 21. Rc1 {[%clk 0:01:24]}  Rxc1+ {[%clk 0:01:47]} 22. Nxc1 {[%clk 0:01:23]}  Nd7 {[%clk 0:01:39]} 23. Kf1 {[%clk 0:01:22]}  g4 {[%clk 0:01:38]} 24. Ne1 {[%clk 0:01:16]}  Nc3 {[%clk 0:01:34]} 25. Ned3 {[%clk 0:01:14]}  Kf7 {[%clk 0:01:31]} 26. f3 {[%clk 0:01:12]}  gxf3 {[%clk 0:01:28]} 27. gxf3 {[%clk 0:01:11]}  Ke7 {[%clk 0:01:28]} 28. Ke1 {[%clk 0:01:09]}  Nb5 {[%clk 0:01:25]} 29. Kd2 {[%clk 0:01:07]}  Kd6 {[%clk 0:01:04]} 30. Nc5 {[%clk 0:01:06]}  b6 {[%clk 0:00:56]} 31. Nxd7 {[%clk 0:00:55]}  Kxd7 {[%clk 0:00:57]} 32. Nd3 {[%clk 0:00:55]}  Ke7 {[%clk 0:00:40]} 33. Ne5 {[%clk 0:00:42]}  Nd6 {[%clk 0:00:30]} 34. Kd3 {[%clk 0:00:35]}  Nf7 {[%clk 0:00:22]} 35. Nc6+ {[%clk 0:00:26]}  Kd7 {[%clk 0:00:17]} 36. Nb8+ {[%clk 0:00:25]}  Kc7 {[%clk 0:00:17]} 37. Nxa6+ {[%clk 0:00:25]}  Kb7 {[%clk 0:00:16]} 38. b5 {[%clk 0:00:25]}  Nd6 {[%clk 0:00:16]} 39. Nb4 {[%clk 0:00:22]}  Nxb5 {[%clk 0:00:16]} 40. e4 {[%clk 0:00:20]}  dxe4+ {[%clk 0:00:15]} 41. fxe4 {[%clk 0:00:20]}  f4 {[%clk 0:00:13]} 42. Nc2 {[%clk 0:00:18]}  Kc6 {[%clk 0:00:12]} 43. Ne1 {[%clk 0:00:18]}  Kd6 {[%clk 0:00:10]} 44. Nf3 {[%clk 0:00:18]}  Nc7 {[%clk 0:00:08]} 45. Kc4 {[%clk 0:00:15]}  b5+ {[%clk 0:00:06]} 46. Kb4 {[%clk 0:00:13]}  Kc6 {[%clk 0:00:06]} 47. Ne5+ {[%clk 0:00:11]}  Kb6 {[%clk 0:00:07]} 48. Kc3 {[%clk 0:00:09]}  Na6 {[%clk 0:00:03]} 49. b4 {[%clk 0:00:09]}  Kc7 {[%clk 0:00:03]} 50. Nf3 {[%clk 0:00:05]}  Kd6 {[%clk 0:00:03]} 51. Kb3 {[%clk 0:00:05]}  Ke7 {[%clk 0:00:04]} 52. Kc3 {[%clk 0:00:05]}  Kf6 {[%clk 0:00:04]} 53. h3 {[%clk 0:00:05]}  Kg6 {[%clk 0:00:04]} 54. Kb3 {[%clk 0:00:05]}  Kf6 {[%clk 0:00:04]} 55. Kc3 {[%clk 0:00:06]}  Kg6 {[%clk 0:00:05]} 56. Kb3 {[%clk 0:00:06]}  Kf6 {[%clk 0:00:05]} 57. Kc3 {[%clk 0:00:07]} 1/2-1/2


[Site "https://www.chess.com"]

[Event "Titled Tuesday Blitz August 17 2021"]
[White "Eynullayev, Atilla"]
[Black "Sapunov, Evgeny"]
[WhiteFideId "13413570"]
[BlackFideId "4126661"]
[WhiteElo "1997"]
[BlackElo "2470"]
[Result "0-1"]
[Round "08"]
[TimeControl "180+1"]
[Date "2021.08.17"]
[WhiteClock "0:00:03"]
[BlackClock "0:00:25"]

1. e4 {[%clk 0:03:00]}  c5 {[%clk 0:02:59]} 2. Nf3 {[%clk 0:02:59]}  d6 {[%clk 0:02:59]} 3. d4 {[%clk 0:02:54]}  cxd4 {[%clk 0:02:59]} 4. Nxd4 {[%clk 0:02:55]}  Nf6 {[%clk 0:02:59]} 5. Nc3 {[%clk 0:02:55]}  Nc6 {[%clk 0:03:00]} 6. Bg5 {[%clk 0:02:54]}  e6 {[%clk 0:03:00]} 7. Bb5 {[%clk 0:02:54]}  Bd7 {[%clk 0:03:00]} 8. Qd3 {[%clk 0:02:55]}  Be7 {[%clk 0:02:58]} 9. O-O-O {[%clk 0:02:55]}  O-O {[%clk 0:02:55]} 10. Bxc6 {[%clk 0:02:55]}  Bxc6 {[%clk 0:02:56]} 11. f4 {[%clk 0:02:52]}  Qc7 {[%clk 0:02:49]} 12. Rhe1 {[%clk 0:02:50]}  Rfd8 {[%clk 0:02:48]} 13. Kb1 {[%clk 0:02:45]}  a6 {[%clk 0:02:45]} 14. Qg3 {[%clk 0:02:25]}  Rac8 {[%clk 0:02:24]} 15. e5 {[%clk 0:02:24]}  dxe5 {[%clk 0:02:20]} 16. fxe5 {[%clk 0:02:23]}  Nd5 {[%clk 0:02:19]} 17. Ne4 {[%clk 0:02:17]}  Kh8 {[%clk 0:01:55]} 18. Rf1 {[%clk 0:02:13]}  Rf8 {[%clk 0:01:51]} 19. c4 {[%clk 0:01:39]}  Nb6 {[%clk 0:01:43]} 20. Nxc6 {[%clk 0:01:34]}  Qxc6 {[%clk 0:01:35]} 21. Bxe7 {[%clk 0:01:13]}  Qxe4+ {[%clk 0:01:34]} 22. Ka1 {[%clk 0:01:14]}  Rg8 {[%clk 0:01:31]} 23. Rxf7 {[%clk 0:01:07]}  Qxc4 {[%clk 0:01:22]} 24. a3 {[%clk 0:01:06]}  Nd5 {[%clk 0:01:22]} 25. Bg5 {[%clk 0:00:44]}  b5 {[%clk 0:01:09]} 26. Qh3 {[%clk 0:00:19]}  Qe2 {[%clk 0:00:53]} 27. Qf3 {[%clk 0:00:15]}  Qxe5 {[%clk 0:00:42]} 28. Bc1 {[%clk 0:00:08]}  b4 {[%clk 0:00:41]} 29. axb4 {[%clk 0:00:07]}  Nxb4 {[%clk 0:00:40]} 30. Kb1 {[%clk 0:00:07]}  Qa5 {[%clk 0:00:36]} 31. Qb3 {[%clk 0:00:07]}  Rb8 {[%clk 0:00:34]} 32. Rdd7 {[%clk 0:00:05]}  Qh5 {[%clk 0:00:31]} 33. g4 {[%clk 0:00:02]}  Qxg4 {[%clk 0:00:28]} 34. Ka1 {[%clk 0:00:02]}  Qg6 {[%clk 0:00:27]} 35. Bd2 {[%clk 0:00:02]}  Nc2+ {[%clk 0:00:27]} 36. Kb1 {[%clk 0:00:02]}  Rxb3 {[%clk 0:00:27]} 37. Bc3 {[%clk 0:00:03]}  Nb4+ {[%clk 0:00:26]} 38. Ka1 {[%clk 0:00:03]}  Qg1+ {[%clk 0:00:25]} 0-1


[Site "https://www.chess.com"]

[Event "Titled Tuesday Blitz August 17 2021"]
[White "Fajdetic, Hrvoje"]
[Black "Gracia Alvarez, Gerardo Antonio"]
[WhiteFideId "14501945"]
[BlackFideId "5109124"]
[WhiteElo "2153"]
[BlackElo "2148"]
[Result "0-1"]
[Round "08"]
[TimeControl "180+1"]
[Date "2021.08.18"]
[WhiteClock "0:00:01"]
[BlackClock "0:00:11"]

1. d4 {[%clk 0:02:21]}  Nf6 {[%clk 0:02:59]} 2. Bf4 {[%clk 0:02:16]}  g6 {[%clk 0:02:56]} 3. Nc3 {[%clk 0:02:15]}  d5 {[%clk 0:02:52]} 4. e3 {[%clk 0:02:14]}  Bg7 {[%clk 0:02:49]} 5. h4 {[%clk 0:02:14]}  h5 {[%clk 0:02:45]} 6. f3 {[%clk 0:02:12]}  c6 {[%clk 0:02:43]} 7. Qd2 {[%clk 0:02:12]}  Nbd7 {[%clk 0:02:40]} 8. O-O-O {[%clk 0:02:11]}  b5 {[%clk 0:02:40]} 9. Nh3 {[%clk 0:02:08]}  Nb6 {[%clk 0:02:36]} 10. e4 {[%clk 0:02:05]}  b4 {[%clk 0:02:27]} 11. Nb1 {[%clk 0:01:53]}  dxe4 {[%clk 0:02:27]} 12. Qxb4 {[%clk 0:01:49]}  Nbd5 {[%clk 0:01:49]} 13. Qa4 {[%clk 0:01:43]}  Nxf4 {[%clk 0:01:41]} 14. Nxf4 {[%clk 0:01:38]}  Bh6 {[%clk 0:01:28]} 15. g3 {[%clk 0:01:33]}  exf3 {[%clk 0:01:28]} 16. Qxc6+ {[%clk 0:01:21]}  Bd7 {[%clk 0:01:28]} 17. Qxf3 {[%clk 0:01:21]}  O-O {[%clk 0:01:27]} 18. Bc4 {[%clk 0:01:17]}  Bg4 {[%clk 0:01:26]} 19. Qa3 {[%clk 0:00:59]}  Bxd1 {[%clk 0:01:27]} 20. Rxd1 {[%clk 0:00:58]}  Rc8 {[%clk 0:01:20]} 21. Bb3 {[%clk 0:00:54]}  Nd5 {[%clk 0:01:18]} 22. Bxd5 {[%clk 0:00:48]}  Qxd5 {[%clk 0:01:18]} 23. Nc3 {[%clk 0:00:47]}  Qf3 {[%clk 0:01:14]} 24. Nd5 {[%clk 0:00:35]}  Qxa3 {[%clk 0:01:06]} 25. bxa3 {[%clk 0:00:36]}  Rfe8 {[%clk 0:01:01]} 26. Re1 {[%clk 0:00:28]}  Kf8 {[%clk 0:00:58]} 27. Kb2 {[%clk 0:00:21]}  e6 {[%clk 0:00:52]} 28. Nf6 {[%clk 0:00:18]}  Red8 {[%clk 0:00:52]} 29. c3 {[%clk 0:00:18]}  Bg7 {[%clk 0:00:43]} 30. Nh7+ {[%clk 0:00:14]}  Kg8 {[%clk 0:00:41]} 31. Ng5 {[%clk 0:00:15]}  Rb8+ {[%clk 0:00:37]} 32. Kc2 {[%clk 0:00:15]}  Rdc8 {[%clk 0:00:38]} 33. Kd3 {[%clk 0:00:15]}  Rb2 {[%clk 0:00:37]} 34. Rf1 {[%clk 0:00:14]}  Rxa2 {[%clk 0:00:35]} 35. Ne2 {[%clk 0:00:12]}  Rc7 {[%clk 0:00:27]} 36. Rb1 {[%clk 0:00:09]}  Bf6 {[%clk 0:00:23]} 37. Rb8+ {[%clk 0:00:08]}  Kg7 {[%clk 0:00:23]} 38. Ne4 {[%clk 0:00:09]}  Rxa3 {[%clk 0:00:23]} 39. Nxf6 {[%clk 0:00:07]}  Kxf6 {[%clk 0:00:23]} 40. Ra8 {[%clk 0:00:07]}  a5 {[%clk 0:00:23]} 41. Ra6 {[%clk 0:00:07]}  Ke7 {[%clk 0:00:21]} 42. Ra8 {[%clk 0:00:05]}  a4 {[%clk 0:00:21]} 43. Kd2 {[%clk 0:00:05]}  Ra2+ {[%clk 0:00:21]} 44. Kd3 {[%clk 0:00:06]}  a3 {[%clk 0:00:21]} 45. Nf4 {[%clk 0:00:06]}  Ra1 {[%clk 0:00:17]} 46. d5 {[%clk 0:00:06]}  e5 {[%clk 0:00:14]} 47. Ne2 {[%clk 0:00:04]}  a2 {[%clk 0:00:14]} 48. Ke3 {[%clk 0:00:04]}  Kd6 {[%clk 0:00:13]} 49. Ra5 {[%clk 0:00:02]}  Rc5 {[%clk 0:00:12]} 50. Ra6+ {[%clk 0:00:02]}  Kxd5 {[%clk 0:00:13]} 51. c4+ {[%clk 0:00:02]}  Kxc4 {[%clk 0:00:12]} 52. Ra3 {[%clk 0:00:01]}  Kb4 {[%clk 0:00:11]} 0-1


[Site "https://www.chess.com"]